{"text_format":"1","workbook":"xlsx","n_sheets":4,"sheets":["Ark1","Ark2","Ark3","Ark4"],"not_rendered":{"charts":0,"images":87,"macros":1,"external_links":0,"defined_names":4,"comments":0,"pivot_tables":0},"unopened":[],"bounds":{"document_bytes":16777216,"sheet_cells":100000,"rows_first":2000,"rows_last":500,"rows_between":2000,"halvings":0,"cell_chars":16384,"cell_head_chars":4096},"cells_cut":0,"cells_raw":0,"read":"whole","date_system":"1900"}

{"sheet":"Ark1","index":0,"n_rows":114,"n_cols":99,"rows_kept":114,"cut":false,"hidden":false,"merged":[]}
[null,null,null,"De danske Bredfodsfluer, Platycheirus (Diptera: Syrphidae)"]
[null,null,null,null,"HANNER",null,null,null,null,"        ",null,null,"Bent Haagen Petersen"]
[null,null,null,null,"Øjne sammenstødende"]
[null,"Bredfodsfluerne, Platycheirus, omfatter i Danmark 22 arter, der alle er ret små slanke arter. Det danske navn har"]
[null,"slægten fra hannernes forben, der hos de fleste arter er udvidet på en for den enkelte art karakteristisk måde. Forbene-"]
[null,"ne er derfor en vigtig bestemmelseskarakter, men de er oftest vanskelige at se tilstrækkeligt tydeligt på billeder. Hun-"]
[null,"nernes forben er normale bortset fra, at forfødderne hos de fleste arter er brede og fladtrykte. Man ser det bedst ved "]
[null,"at sammenligne med fødderne på de mellemste ben. Bredfodsfluerne ligner meget de to Græssvirrefluearter Melano- "]
[null,"stoma mellinum og scalare, men hos disse er forben og forfødder cylindriske, det inderste bagfodsled (metatarsus)"]
[null,"er aldrig opsvulmet, og bagkroppens pletter har hos hunner ofte en noget trekantet form, som ikke forekommer hos"]
[null,"Platycheirus. Bredfodsfluernes karakteristiske forben er vist i artsbeskrivelserne."]
[null,"Kun 7 af arterne regnes for af være almindelige. De øvrige er mere eller mindre sjældne. De seneste årtier er flere nye "]
[null,"arter kommet til ved udskilning fra almindelige arter. Således dækker P. scutatus over et artskomplex, der også inde-"]
[null,"holder de sjældne arter P. splendidus og P. aurolateralis. De er beskrevet under P. scutatus."]
[null,"Fra  P. clypeatus er udskilt de ligeledes sjældne arter P. europaeus og P. occultus. Disse arter kan ofte kun bestem-"]
[null,"mes ved også at læse artsbeskrivelserne."]
[null,"P. peltatus  har normalt gule bagkropspletter, men ikke sjældent er pletterne mere eller mindre hvidligt  pudrede."]
[null,"P. scutatus har undertiden bagkropspletterne bronzefarvede, og P. albimanus kan have pletternes grundfarve gulbrun.",null,null,null,null,null,null,null,null,null,null,null,null,null,null,null,null,null,null,null,null,null,null,null,null,null,null,null,null,null,null,null,null,null,null,null,null,null,null,null,null,null,null,null,null,"ø"]
[null,"Vær opmærksom på, at lysreflekser på et sølvskinnende 5. bagkropsled kan ligne"]
[null,"små pletter, eksempelvis hos P. albimanus."]
[null,"  Sådan bruger man bedst nøglen."]
[null,"Nøglen er specielt konstrueret til brug ved bestemmelse af fluer på billeder. Den bruger samme kendetegn som de"]
[null,"almindelige nøgler. Blot er man ikke nødt til at gå frem i en given rækkefølge, som man jo ellers skal. Det er en"]
[null,"fordel, da der på billeder ofte er kendetegn, der ikke kan ses, og så ville man gå i stå. Med nøglen her klikker man"]
[null,"uden rækkefølge kun på de kendetegn, man kan se på billedet. Man behøver altså ikke starte med det øverste af"]
[null,"spørgsmålene. Det er altid bedst at starte med kendetegn, som er meget tydelige at se på billedet. Er der kendetegn,"]
[null,"der er skjult på billedet, springes de således bare over. Men der skal ikke gerne være for mange af den slags. Hver"]
[null,"gang man klikker på et kendetegn, vises et billede af kendetegnet. Klikker man på et kendetegn, der ikke passer "]
[null,"med nøglens, gør nøglen opmærksom på, at en bestemmelse da næppe vil være mulig."]
[]
[null,"I takt med, at man klikker på kendetegn, kan man på oversigten over nøglens arter se, hvordan antallet af muligheder"]
[null,"bliver mindre. Arter, som ikke har alle de kendetegn, der er klikket på, forsvinder fra oversigten. Når der kun er et"]
[null,"navn tilbage på oversigten, skriver nøglen, at fluen nu er bestemt. Dens navn vises i feltet øverst på skemaet. Deref-"]
[null,"kan man i artsoversigen klikke på artens navn. Der vises da en beskrivelse af arten og et billede af denne. Læs altid"]
[null,"artsbeskrivelsen. Er man derefter helt sikker på bestemmelsen, kan man indrapportere observationen. Er men ikke"]
[null,"særlig øvet i at bestemme fluer, bør man sikre sig ved først at spørge i Fugle og Naturs Tovinge-forum.",null,null,null,null,null,null,null,null,null,null,null,null,null,null,null,null,null,null,null,null,null,null,null,null,null,null,null,null,null,null,null,null,null,null,null,null,null,null,null,null,null,null,null,null,null,null,null,null,null,null,null,null,null,null,null,null,null,null,null,null,null,null,null,null,null,null,null,null,null,null,null,null,null,null,15]
[]
[null," "]
[null,"Tegninger af arternes kendetegn efter Lundbeck 1916",null,null,null,null,null,null,null,null,null,null,null,null,null,null,null," "]
[null,null,null,null,null,null,null,null,null,null,null,null,null,null,null,null,null," "]
[null,"                Nøgle til danske Bredfodsfluer, Platycheirus (Diptera: Syrphidae)",null,null,null,null,null,null,null,null,null,null,null,null,null,null,null,null,null,null,null,null,null,null,null,null,null,null,null,null,null,null,null,null,"  Over nøglen kan du læse om Platycheirus"]
[null,null,null,null,null,null,null,null,null,null,null,null,null,null,null,null,null," ",null,null,null,null,null,null,null,null,null,null,null,null,null,null,null,null,"      og om, hvordan nøglen bedst bruges.",null,null,null,null,null,null,null,null,null,null,null,null,null,null,null," "]
[null,null,null,null,null,"HANNER",null,null,null,null,null,null,null,null," ",null,null,null,null,null,{"$f":"IF(AU48=1,VLOOKUP(AU47,AU77:AV102,2,FALSE),\"         Platycheirus sp.\")","v":"Platycheirus albimanus"},null,null,null,null,null,null,null,null,null,null,null,null,null,null,null,null,null,null,null,null,null,null,null,null,null,null,"*",null,null," ","*",null,null,null,"*",null,"*",null,"*",null,null,"*",null,null,"*",null,null,"*",null,null,"*",null,"*",null,"*",null,"*"]
[null,null,null,null,null,"Øjne sammenstødende",null,null,null,null,null,null,null,null,null,null,null," ",null,null,null,null,{"$f":"IF(AU48=1,VLOOKUP(AU47,BF77:BG102,2,FALSE), \"          Bredfodsflue\")","v":"   Sortblå Bredfodsflue"},null,null,null,null,null,null,null,null,null,null,null,null,null,null," ",null,null,"Afkrydsede felter",null,null,null,null,null,{"$f":"SUM(AV44+AZ44+BD44+BH44+BF44+BK44+BN44+BQ44+BX44+BV44+BT44+BZ44)","v":4},{"$f":"IF(AY44=0,0,1)","v":1},null,null,{"$f":"+AV45+AW45+AX45+AY45","v":1},{"$f":"IF(BC44=0,0,1)","v":1},null,null,{"$f":"+BB45+BC45+AZ45+BA45","v":1},{"$f":"IF(BE44=0,0,1)","v":1},{"$f":"+BD45+BE45","v":1},{"$f":"IF(BG44=0,0,1)","v":1},{"$f":"+BF45+BG45","v":1},{"$f":"IF(BJ44=0,0,1)","v":0},null,{"$f":"+BI45+BJ45+BH45","v":0},{"$f":"IF(BM44=0,0,1)","v":0},null,{"$f":"+BL45+BM45+BK45","v":0},{"$f":"IF(BP44=0,0,1)","v":0},null,{"$f":"+BO45+BP45+BN45","v":0},{"$f":"IF(BS44=0,0,1)","v":0},null,{"$f":"+BR45+BS45+BQ45","v":0},{"$f":"IF(BU44=0,0,1)","v":0},{"$f":"+BT45+BU45","v":0},{"$f":"IF(BW44=0,0,1)","v":0},{"$f":"+BV45+BW45","v":0},{"$f":"IF(BY44=0,0,1)","v":0},{"$f":"BX45+BY45","v":0},{"$f":"IF(CA44=0,0,1)","v":0},{"$f":"+BZ45+CA45","v":0}]
[null,"Bagkrop med gule pletter, der kan være noget hvidpudrede ?",null,null,null,null,null,null,null,null,null,null,null,null,null,null,null,null," ",{"$f":"IF(AU44=0,\" \",IF((AU48>=2)*AND(AU44=AU47),AU48,\" \"))","v":" "},{"$f":"IF(AU44=0,\" \",IF((AU48>=2)*AND(AU44=AU47),\"arter har de kendetegn, du har markeret\",\" \"))","v":" "},null,null,null,null,null,null,null,null,null,null,null,null,null,null,null,null,null,null,null,null,null,null,null,null,null,null,{"$f":"IF(CE45=\" \",0,1)","v":0},{"$f":"IF(CE46=\" \",0,1)","v":1},{"$f":"IF(CE47=\" \",0,1)","v":0},{"$f":"IF(CE48=\" \",0,1)","v":0},{"$f":"IF(CE49=\" \",0,1)","v":0},{"$f":"IF(CE50=\" \",0,1)","v":0},{"$f":"IF(CE51=\" \",0,1)","v":1},{"$f":"IF(CE52=\" \",0,1)","v":0},{"$f":"IF(CE53=\" \",0,1)","v":1},{"$f":"IF(CE54=\" \",0,1)","v":0},{"$f":"IF(CE55=\" \",0,1)","v":1},{"$f":"IF(CE56=\" \",0,1)","v":0},{"$f":"IF(CE57=\" \",0,1)","v":0},{"$f":"IF(CE58=\" \",0,1)","v":0},{"$f":"IF(CE59=\" \",0,1)","v":0},{"$f":"IF(CE60=\" \",0,1)","v":0},{"$f":"IF(CE61=\" \",0,1)","v":0},{"$f":"IF(CE62=\" \",0,1)","v":0},{"$f":"IF(CE63=\" \",0,1)","v":0},{"$f":"IF(CE64=\" \",0,1)","v":0},{"$f":"IF(CE65=\" \",0,1)","v":0},{"$f":"IF(CE66=\" \",0,1)","v":0},{"$f":"IF(CE67=\" \",0,1)","v":0},{"$f":"IF(CE68=\" \",0,1)","v":0},{"$f":"IF(CE69=\" \",0,1)","v":0},{"$f":"IF(CE70=\" \",0,1)","v":0},{"$f":"IF(CE71=\" \",0,1)","v":0},{"$f":"IF(CE72=\" \",0,1)","v":0},{"$f":"IF(CE73=\" \",0,1)","v":0},{"$f":"IF(CE74=\" \",0,1)","v":0},{"$f":"IF(CE75=\" \",0,1)","v":0},{"$f":"IF(CE76=\" \",0,1)","v":0},null," ",null,{"$f":"IF(CF45,\"x\",\" \")","v":" "},0]
[" ","   -            med blågrå, bronzefarvede eller gulbrune pletter ?",null,null,null,null,null,null,null,null,null,null,null,null,null,null,null,null," ",{"$f":"IF(AU48=1,\"          Fluen er nu bestemt. Se ovenfor\",IF(AU44>AU47,\" \",\"   Se de mulige arter i oversigten nedenfor\"))","v":"          Fluen er nu bestemt. Se ovenfor"},null,null,null,null,null,null,null,null,null,null,null,null,null,null,null,null,null,null,null,null,null,null,null,null,null,null,null,null,null,null,null,null,null,null,null,null,null,null,null,null,null,null,null,null,null,null,null,null,null,null,null,null,null,null,null,null,null,null,null,null," ",null,"x",true]
[null,"    -           med store røde partier ?",null,null,null,null,null,null,null,null,null,null,null,null,null,null,null,null," ",{"$f":"IF(AU44>AU47,\" Afkrydsede kendetegn passer ikke med nøglens.\",\" \")","v":" "},null,null,null,null,null,null,null,null,null,null,null,null,null,null,null,null,null,null,null,null,null,null,"Maks.",null,null,null,{"$f":"MAX(AU49:AU74)","v":4},null,null,null,null,null,null,null,null,null,null,null,null,null,null,null,null,null,null,null,null,null,null,null,null,null,null,null,null,null,null,null,null,null," ",null," ",0]
[null,"    -           med hvidgule pletter på 3. led, måske også lidt på 4. led ?",null,null,null,null,null,null,null,null,null,null,null,null,null,null,null,null,null,null,{"$f":"IF(AU44>AU47,\" Det gør en bestemmelse meget tvivlsom.\",\" \")","v":" "},null,null,null,null,null,null,null,null,null,null,null,null,null,null,null,null,null,null,null,null,null,"Ant. Maks.",null,null,null,{"$f":"COUNTIF(AU49:AU74,AU47)","v":1},"   Pletters farve",null,null,null,"   Pletter antal",null,null,null,"Forsk.",null,"Forfødd.",null,"    Baglår ",null,null,"  F&M lår",null,null,"  Bag.sk.",null,null,"F&M sk.b-",null,null,"3.led F",null,"3. led L",null," Ansigt",null,"hvidt hår",null,null," ",null," ",0]
[null,"Bagkrop med 4 par pletter, de på 5. led ret store og  tydelige ?",null,null,null,null,null,null,null,null,null,null,null,null,null,null,null,null,null,"   Klik på artsnr. for at billede og beskrivelse",null,null,null,null,null,null,null,null,null,null,null,null,null,null,null,null,null,null,null,{"$f":"COUNT(AV49:BO49)","v":3},"angustatus",null,null,null,null,null,{"$f":"COUNT(AV49:CA49)","v":3},{"$f":"IF(CE$45=\"x\",1,\" \")","v":" "},null,null,null,null,null,{"$f":"IF(CE$51=\"x\",1,\" \")","v":1},null,{"$f":"IF(CE$53=\"x\",1,\" \")","v":1},null,{"$f":"IF(CE$55=\"x\",1,\" \")","v":1},null,null,null,{"$f":"IF(CE$59=\"x\",1,\" \")","v":" "},{"$f":"IF(CE$60=\"x\",1,\" \")","v":" "},null,null,null,{"$f":"IF(CE$64=\"x\",1,\" \")","v":" "},null,{"$f":"IF(CE$66=\"x\",1,\" \")","v":" "},null,null,{"$f":"IF(CE$69=\"x\",1,\" \")","v":" "},null,{"$f":"IF(CE$71=\"x\",1,\" \")","v":" "},null,null,{"$f":"IF(CE$74=\"x\",1,\" \")","v":" "},{"$f":"IF(CE$75=\"x\",1,\" \")","v":" "},null,null," ",null," ",0]
[null,"       -        med  4 par pletter, de på 5. led små, som regel kileformede ?   ",null,null,null,null,null,null,null,null,null,null,null,null,null,null,null,null," ",null,null,null,null,null,null,null,null,null,null,null,null,null,null,null,null,null,null,null,null,{"$f":"COUNT(AV50:BO50)","v":3},"clypeatus",null,null,null,null,null,3," ",null,null,null,null,{"$f":"IF(CE$50=\"x\",1,\" \")","v":" "},{"$f":"IF(CE$51=\"x\",1,\" \")","v":1},null,{"$f":"IF(CE$53=\"x\",1,\" \")","v":1},null,1,null,null,null," "," ",null,null,null," ",null," ",{"$f":"IF(CE$67=\"x\",1,\" \")","v":" "},null," ",null," ",null,null," "," ",null,null," ",null,{"$f":"IF(CF50,\"x\",\" \")","v":" "},0]
[null,"       -        med 3 eller 2 par pletter. 5. led sort eller sølvskinnende ?  ",null,null,null,null,null,null,null,null,null,null,null,null,null,null,null,null,null,null,1,{"$f":"IF(AU49=AU$47,\"angustatus\",\" \")","v":" "},null,null,null,null,null,11,{"$f":"IF(AU59=AU47,\"peltatus\",\" \")","v":" "},null,null,null,null,null,null,null,null,null,null,3,"europaeus",null,null,null,null,null,3," ",null,null,null,null,null,1,null,{"$f":"IF(CE$53=\"x\",1,\" \")","v":1},null,1,null,null,null," ",null,{"$f":"IF(CE$61=\"x\",1,\" \")","v":" "},null,null," ",null," ",{"$f":"IF(CE$67=\"x\",1,\" \")","v":" "},null," ",null," ",null,null," "," ",null,null," ",null,"x",true]
[null,"       -        med hvidgule pletter på 3. led, uden pletter eller delvis rød ?",null,null,null,null,null,null,null,null,null,null,null,null,null,null,null,null,null,null,2,{"$f":"IF(AU50=AU47,\"clypeatus\",\" \")","v":" "},null,null,null,null,null,12,{"$f":"IF(AU60=AU47,\"transfugus\",\" \")","v":" "},null,null,null,null,null,null,null,null,null,null,2,"fulviventris",null,null,null,null,null,2," ",null,null,null,{"$f":"IF(CE$49=\"x\",1,\" \")","v":" "},null,null,null,1,null,1,null,{"$f":"IF(CE$57=\"x\",1,\" \")","v":" "},null,null,{"$f":"IF(CE$60=\"x\",1,\" \")","v":" "},null,null,{"$f":"IF(CE$63=\"x\",1,\" \")","v":" "},null," "," ",null,null," ",null," ",null,null," "," ",null,null," ",null," ",0]
[null,"Forskinneben tydeligt udvidede, i hvert fald ved spidsen ?",null,null,null,null,null,null,null,null,null,null,null,null,null,null,null,null,null,null,3,{"$f":"IF(AU51=AU47,\"europaeus\",\" \")","v":" "},null,null,null,null,null,13,{"$f":"IF(AU61=AU47,\"albimanus\",\" \")","v":"albimanus"},null,null,null,null,null,null,null,null,null,null,2,"immarginatus",null,null,null,null,null,2," ",null,null,null,{"$f":"IF(CE$49=\"x\",1,\" \")","v":" "},null,null,null,1,null,1,null," ",{"$f":"IF(CE$58=\"x\",1,\" \")","v":" "},null," ",null,null,null," ",null," ",null,null," ",null,null,{"$f":"IF(CE$72=\"x\",1,\" \")","v":" "},null," "," ",null,null," ",null,"x",true]
[null,"           -              cylindriske eller en smule flatdt udvidede mod spids ?     ",null,null,null,null,null,null,null,null,null,null,null,null,null,null,null,null,null,null,4,{"$f":"IF(AU52=AU47,\"fulviventris\",\" \")","v":" "},null,null,null,null,null,14,{"$f":"IF(AU62=AU47,\"scutatus-kompleks\",\" \")","v":" "},null,null,null,null,null,null,null,null,null,null,3,"occultus",null,null,null,null,null,3," ",null,null,null,null,null,1,null,1,null,1,null,null,null,{"$f":"IF(CE$59=\"x\",1,\" \")","v":" "},null," ",null,null," ",null," ",null,null," ",null," ",null,null," "," ",null,null," ",null," ",0]
[null,"Forfodsled 1   tydeligt udvidet, ofte kraftigt ?",null,null,null,null,null,null,null,null,null,null,null,null,null,null,null,null,null,null,5,{"$f":"(IF(AU53=AU47,\"immarginatus\",\" \"))","v":" "},null,null,null,null,null,15,{"$f":"IF(AU63=AU47,\"discimanus\",\" \")","v":" "},null,null,null,null,null,null,null,null,null,null,2,"perpallidus",null,null,null,null,null,2," ",null,null,null,{"$f":"IF(CE$49=\"x\",1,\" \")","v":" "},null,null,null,1,null,1,null,{"$f":"IF(CE$57=\"x\",1,\" \")","v":" "}," ",null,{"$f":"IF(CE$60=\"x\",1,\" \")","v":" "}," ",null,{"$f":"IF(CE$63=\"x\",1,\" \")","v":" "},null,null,null," ",null," ",null,null," ",null," "," ",null,null," ",null,"x",true]
[null,"          -               ikke eller meget lidt udvidet ?",null,null,null,null,null,null,null,null,null,null,null,null,null,null,null,null,null,null,6,{"$f":"IF(AU54=AU47,\"occultus\",\" \")","v":" "},null,null,null,null,null,16,{"$f":"IF(AU64=AU47,\"manicatus\",\" \")","v":" "},null,null,null,null,null,null,null,null,null,null,3,"podagratus",null,null,null,null,null,3," ",null,null,null,null,{"$f":"IF(CE$50=\"x\",1,\" \")","v":" "},1,null,1,null,1,null,null,null," "," ",null,null,null," ",{"$f":"IF(CE$65=\"x\",1,\" \")","v":" "}," ",null,null," ",null," ",null,null," "," ",null,null," ",null," ",0]
[null,"Baglår helt gule eller med svag antydning af lidt mørkt ? ",null,null,null,null,null,null,null,null,null,null,null,null,null,null,null,null,null,null,7,{"$f":"IF(AU55=AU47,\"perpallidus\",\" \")","v":" "},null,null,null,null,null,17,{"$f":"IF(AU65=AU47,\"tarsalis\",\" \")","v":" "},null,null,null,null,null,null,null,{"$f":"VLOOKUP(BY36,M80:N111,2)","v":"                      Baglår sorte"},null,null,2,"scambus",null,null,null,null,null,2," ",null,null,null," ",null,null,null,1,null,{"$f":"IF(CE$55=\"x\",1,\" \")","v":1},null,null,{"$f":"IF(CE$58=\"x\",1,\" \")","v":" "},null," ",null,null,null," ",null," ",null,null," ",null,null," ",null," ",null,{"$f":"IF(CE$76=\"x\",1,\" \")","v":" "},null," ",null," ",0]
[null,"     -     med sorte ringe eller tydelige sorte partier ?",null,null,null,null,null,null,null,null,null,null,null,null,null,null,null,null,null,null,8,{"$f":"IF(AU56=AU47,\"podagratus\",\" \")","v":" "},null,null,null,null,null,18,{"$f":"IF(AU66=AU47,\"ambiguus\",\" \")","v":" "},null,null,null,null,null,null,null,null,null,null,2,"sticticus",null,null,null,null,null,2,null,{"$f":"IF(CE$46=\"x\",1,\" \")","v":1},null,null,null,null,1,null,null,{"$f":"IF(CE$54=\"x\",1,\" \")","v":" "},null,{"$f":"IF(CE$56=\"x\",1,\" \")","v":" "},null,null," ",null," ",{"$f":"IF(CE$62=\"x\",1,\" \")","v":" "},null,null," ",null," ",{"$f":"IF(CE$68=\"x\",1,\" \")","v":" "},{"$f":"IF(CE$69=\"x\",1,\" \")","v":" "},{"$f":"IF(CE$70=\"x\",1,\" \")","v":" "},null," ",null," ",null,{"$f":"IF(CE$76=\"x\",1,\" \")","v":" "},null," ",null," ",0]
[null,"     -     sorte, oftest med spidsen gul ?",null,null,null,null,null,null,null,null,null,null,null,null,null,null,null,null,null,null,9,{"$f":"IF(AU57=AU47,\"scambus\",\" \")","v":" "},null,null,null,null,null,19,{"$f":"IF(AU67=AU47,\"granditarsis\",\" \")","v":" "},null,null,null,null,null,null,null,null,null,null,2,"peltatus",null,null,null,null,null,2," ",null,null,null,null,{"$f":"IF(CE$50=\"x\",1,\" \")","v":" "},null,null,1,null,{"$f":"IF(CE$55=\"x\",1,\" \")","v":1},null,null,null," ",null," ",null,null,null," "," ",null,null,null,{"$f":"IF(CE$70=\"x\",1,\" \")","v":" "},{"$f":"IF(CE$71=\"x\",1,\" \")","v":" "},null,{"$f":"IF(CE$73=\"x\",1,\" \")","v":" "},{"$f":"IF(CE$74=\"x\",1,\" \")","v":" "}," ",null,null," ",null," ",false]
[null,"For- og /eller mellemlår gule, måske med antydning af  mørkt ?",null,null,null,null,null,null,null,null,null,null,null,null,null,null,null,null,null,null,10,{"$f":"IF(AU58=AU47,\"sticticus\",\" \")","v":" "},null,null,null,null,null,20,{"$f":"IF(AU68=AU47,\"rosarum\",\" \")","v":" "},null,null,null,null,null,null,null,null,null,null,2,"transfugus",null,null,null,null,null,2,{"$f":"IF(CE$45=\"x\",1,\" \")","v":" "},{"$f":"IF(CE$46=\"x\",1,\" \")","v":1},null,null,null,null,1,null,null,{"$f":"IF(CE$54=\"x\",1,\" \")","v":" "},null,{"$f":"IF(CE$56=\"x\",1,\" \")","v":" "},null,null," ",{"$f":"IF(CE$60=\"x\",1,\" \")","v":" "}," ",null,null," "," ",null," ",null,null," ",null," ",null," ",null,{"$f":"IF(CE$76=\"x\",1,\" \")","v":" "},null," ",null," ",0]
[null,"             -            med tydelige sorte ringe eller mørkere partier ? ",null,null,null,null,null,null,null,null,null,null,null,null,null,null,null,null,null,null,null,null,null,null,null,null,null,null,null,null,null,null,null,null,null,null,null,null,null,4,"albimanus",null,null,null,null,null,4,null,{"$f":"IF(CE$46=\"x\",1,\" \")","v":1},null,null,null,null,1,null,1,null,{"$f":"IF(CE$55=\"x\",1,\" \")","v":1},null,null,null," ",null," ",{"$f":"IF(CE$62=\"x\",1,\" \")","v":" "},null,null,{"$f":"IF(CE$65=\"x\",1,\" \")","v":" "}," "," ",null,{"$f":"IF(CE$69=\"x\",1,\" \")","v":" "}," ",{"$f":"IF(CE$71=\"x\",1,\" \")","v":" "},null," "," "," ",null,null," ",null," ",0]
[null,"             -            sorte, oftest med spidsen gul ?",null,null,null,null,null,null,null,null,null,null,null,null,null,null,null,null,null,null,null,null,null,null,null,null,null,null,null,null,null,null,null,null,null,null,null,null,null,3,"scutatus",null,null,null,null,null,3,{"$f":"IF(CE$45=\"x\",1,\" \")","v":" "},null,null,null,null,null,1,null,1,null,1,null,null,null," ",null," "," ",null,null," ",{"$f":"IF(CE$66=\"x\",1,\" \")","v":" "}," ",null,null," ",null," ",null," "," ",null,null," ",null," ",false]
[null,"Bagskinneben helt gule eller med svag antydning af lidt mørkt ?",null,null,null,null,null,null,null,null,null,null,null,null,null,null,null,null,null,null,null,null,null,null,null,null,null,null,null,null,null,null,null,null,null,null,null,null,null,3,"discimanus",null,null,null,null,null,3,null,{"$f":"IF(CE$46=\"x\",1,\" \")","v":1},null,null,null,null,1,null,null," ",1,null,null,null," ",null,null," ",null,null," ",null," ",{"$f":"IF(CE$68=\"x\",1,\" \")","v":" "},{"$f":"IF(CE$69=\"x\",1,\" \")","v":" "},null,null," ",null," ",null,{"$f":"IF(CE$76=\"x\",1,\" \")","v":" "},null," ",null," ",0]
[null,"             -             med sorte ringe eller med yderste halvdel sort  ?",null,null,null,null,null,null,null,null,null,null,null,null,null,null,null,null,null,null,null,null,null,null,null,null,null,null,null,null,null,null,null,null,null,null,null,null,null,1,"manicatus",null,null,null,null,null,1,{"$f":"IF(CE$45=\"x\",1,\" \")","v":" "},null,null,null,{"$f":"IF(CE$49=\"x\",1,\" \")","v":" "},{"$f":"IF(CE$50=\"x\",1,\" \")","v":" "},null,null,null," ",1,null,null,null," ",null,null," ",null,null," ",null," ",null," ",null,null," "," ",null,null," ",null," ",null," ",0]
[null,"             -             sorte, måske lidt lysere ved knæ og spids ?",null,null,null,null,null,null,null,null,null,null,null,null,null,null,null,null,null,null,null,null,null,null,null,null,null,null,null,null,null,null,null,null,null,null,null,null,null,2,"tarsalis",null,null,null,null,null,2,{"$f":"IF(CE$45=\"x\",1,\" \")","v":" "},null,null,null,null,null,1,null,null," ",1,null,null,null," ",null,null," ",null,null," ",null," ",null," ",null," ",null," ",null,null," ",null," ",null," ",0]
[null,"For- og /eller mellemskinneben  gule eller med lidt svagt mørkt ?",null,null,null,null,null,null,null,null,null,null,null,null,null,null,null,null,null,null,null,null,null,null,null,null,null,null,null,null,null,null,null,null,null,null,null,null,null,2,"ambiguus",null,null,null,null,null,2,null,{"$f":"IF(CE$46=\"x\",1,\" \")","v":1},null,null,null,null,1,null,null," ",null,{"$f":"IF(CE$56=\"x\",1,\" \")","v":" "},null,null," ",{"$f":"IF(CE$60=\"x\",1,\" \")","v":" "},null," ",null,null," ",null," ",null," ",{"$f":"IF(CE$70=\"x\",1,\" \")","v":" "}," ",null,null," ",null," ",null," ",null," ",0]
[null,"             -            med sorte ringe eller med yderste halvdel  sort ?",null,null,null,null,null,null,null,null,null,null,null,null,null,null,null,null,null,null,null,null,null,null,null,null,null,null,null,null,null,null,null,null,null,null,null,null,null,1,"granditarsis",null,null,null,null,null,1,null,null,{"$f":"IF(CE$47=\"x\",1,\" \")","v":" "},null,null,null,null,{"$f":"IF(CE$52=\"x\",1,\" \")","v":" "},null," ",1,null,null,null," ",null,null," ",null,{"$f":"IF(CE$64=\"x\",1,\" \")","v":" "},null,null," ",null," "," ",null,{"$f":"IF(CE$72=\"x\",1,\" \")","v":" "},null," ",null," ",null," ",null," ",0]
[null,"            -             sorte, måske lidt lysere ved knæ og spids ?",null,null,null,null,null,null,null,null,null,null,null,null,null,null,null,null,null,null,null,null,null,null,null,null,null,null,null,null,null,null,null,null,null,null,null,null,null,0,"rosarum",null,null,null,null,null,0,null,null,null,{"$f":"IF(CE$48=\"x\",1,\" \")","v":" "},null,null,null,{"$f":"IF(CE$52=\"x\",1,\" \")","v":" "},null," ",null,{"$f":"IF(CE$56=\"x\",1,\" \")","v":" "},null,null," ",null,{"$f":"IF(CE$61=\"x\",1,\" \")","v":" "},null,null,{"$f":"IF(CE$64=\"x\",1,\" \")","v":" "},null,{"$f":"IF(CE$66=\"x\",1,\" \")","v":" "}," ",null," "," "," ",null,null," ",null," ",null," ",null," ",0]
[null,"3. følehornsled  helt sort  ?",null,null,null,null,null,null,null,null,null,null,null,null,null,null,null,null,null,null,null,null,null,null,null,null,null,null,null,null,null,null,null,null,null,null,null,null,null,null,null,null,null,null,null,null,null,null,null,null,null,null,null,null,null,null,null,null,null,null,null,null,null,null,null,null,null,null,null,null,null,null,null,null,null,null,null,null,null,null," ",null," ",0]
[null,"          -                 brunt eller gulligt ved basen, (ofte svært at se !)  ?",null,null,null,null,null,null,null,null,null,null,null,null,null,null,null,null,null,null,null,null,null,null,null,null,null,null,null,null,null,null,null,null,null,null,null,null,null,null,null,null,null,null,null,null,null,null,null,null,null,null,null,null,null,null,null,null,null,null,null,null,null,null,null,null,null,null,null,null,null,null,null,null,null,null,null,null,null,null," ",null," ",0]
[null,"3. følehornsled  længere end bredt ?",null,null,null,null,null,null,null,null,null,null,null,null,null,null,null,null,null,null,null,null,null,null,null,null,null,null,null,null,null,null,null,null,null,null,null,null,null,null,null,null,null,null,null,null,null,null,null,null,null,null,null,null,null,null,null,null,null,null,null,null,null,null,null,null,null,null,null,null,null,null,null,null,null,null,null,null,null,null," ",null," ",0]
[null,"          -                 ikke længere end bredt ?",null,null,null,null,null,null,null,null,null,null,null,null,null,null,null,null,null,null,null,null,null,null,null,null,null,null,null,null,null,null,null,null,null,null,null,null,null,null,null,null,null,null,null,null,null,null,null,null,null,null,null,null,null,null,null,null,null,null,null,null,null,null,null,null,null,null,null,null,null,null,null,null,null,null,null,null,null,null," ",null," ",0]
[null,"Mundkant fremskydende til ansigtsknops spids eller længere ? ",null,null,null,null,null,null,null,null,null,null,null,null,null,null,null,null,null,null,null,null,null,null,null,null,null,null,null,null,null,null,null,null,null,null,null,null,null,null,null,null,null,null,null,null,null,null,null,null,null,null,null,null,null,null,null,null,null,null,null,null,null,null,null,null,null,null,null,null,null,null,null,null,null,null,null,null,null,null," ",null," ",0]
[null,"     -   ikke fremskydende til ansigtsknops spidr, ansigt måske fladt ?",null,null,null,null,null,null,null,null,null,null,null,null,null,null,null,null,null,null,null,null,null,null,null,null,null,null,null,null,null,null,null,null,null,null,null,null,null,null,null,null,null,null,null,null,null,null,null,null,null,null,null,null,null,null,null,null,null,null,null,null,null,null,null,null,null,null,null,null,null,null,null,null,null,null,null,null,null,null," ",null," ",0]
[null,"Forlår med langt hvidt hår helt inde på undersidens basis ?",null,null,null,null,null,null,null,null,null,null,null,null,null,null,null,null,null,null,null,null,null,null,null,null,null,null,null,null,null,null,null,null,null,null,{"$f":"VLOOKUP(CE80,Z80:AA99,2)","v":"      Platycheirus albimanus"},null,null,null,null,null,null,null,null,null,null,null,null,null,null,null,null,null,null,null,null,null,null,null,null,null,null,null,null,null,null,null,null,null,null,null,null,null,null,null," ",null,null,null," ",null," ",0]
[null,"      -      ikke med et sådant hår ?",null,null,null,null,null,null,null,null,null,null,null,null,null,null,null,null,null,null,null,null,null,null,null,null,null,null,null,null,null,null,null,null,null,null,null,null,null,null,null,null,null,null,null,null,null,null,null,null,null,null,null,null,null,null,null,null,null,null,null,null,null,null,null,null,null,null,null,null,null,null,null,null,null,null,null,null,null,null," ",null," ",0]
[null,null,null,null,null,null,null,null,null,null,null,null,null,null,null,null,null," ",null,null,null,null,null,null,null,null,null,null,null,null,null,null,null,null,null,null,null,null,null,1,"angustatus",null,null,null,null,null,{"$f":"COUNT(AV49:CA49)","v":3}," Platycheirus angustatus",null,null,null,null,null,null,null,null,null,{"$f":"COUNT(AV49:CA49)","v":3},"    Smal Bredfodsflue"]
[null,null,null,null,null,null,null,null,null,null,"Kendetegn",null,null,null,null,null,null," ",null,"     ",null,null,null,null,null,null,null,null,"Artsnavn",null,null,null,null,null,null,null,null,null,null,2,"clypeatus",null,null,null,null,null,3,"Platycheirus clypeatus",null,null,null,null,null,null,null,null,null,3,"   Skjold-Bredfodflue"]
[null,null,null,null,null,null,null,null,null,null,null,null,null,null," ",null,null,null,null,null,null,null,null,null,null,null,null,null,null,null,null,null,null,null,null,null,null,null,null,3,"europaeus",null,null,null,null,null,3," Platycheirus europaeus",null,null,null,null,null,null,null,null,null,3,"Europæisk Bredfodsflue"]
[null,null,null,null,null,null,null,null,null,null,null,null,1,"        Bagkrop med gule pletter",null,null,null,null,null,null,null,null,null,null,null,1,"     Platycheirus angustatus",null,null,null,null,null,null,null,null,null,null,null,null,null,"fulviventris",null,null,null,null,null,2,"Platycheirus fulviventris",null,null,null,null,null,null,null,null,null,2,"    Rødgul Bredfodsflue",null,null,null,null,null,null,null,null,null,null,null,null,null,null,null,null,null,null,null,null,null,null,null,13]
[null,null,null,null,null,null,null,null,null,null,null,null,2,"   Bagkrop med sølv/bronze pletter",null,null,null,null,null,null,null,null,null,null,null,2,"      Platycheirus clypeatus",null,null,null,null,null,null,null,null,null,null,null,null,null,"immarginatus",null,null,null,null,null,2,"Platycheirus immarginatus",null,null,null,null,null,null,null,null,null,2,"    Kyst-Bredfodsflue"]
[null,null,null,null,null,null,null,null,null,null,null,null,3,"      Bagkrop med røde partier",null,null,null,null,null,null,null,null,null,null,null,3,"      Platycheirus europaeus ",null,null,null,null,null,null,null,null,null,null,null,null,null,"occultus",null,null,null,null,null,3,"Platycheirus occultus",null,null,null,null,null,null,null,null,null,3,"Sløret Bredfodsflue"]
[null,null,null,null,null,null,null,null,null,null,null,null,4,"Bagkrop med hvidgule pletter på 3. led",null,null,null,null,null,null,null,null,null,null,null,4,"       Platycheirus fulviventris ",null,null,null,null,null,null,null,null,null,null,null,null,null,"perpallidus",null,null,null,null,null,2,"  Platycheirus perpallidus",null,null,null,null,null,null,null,null,null,2,"    BlegBredfodsflue"]
[null,null,null,null,null,null,null,null,null,null,null,null,5,"    Bagkrop med 4-5 par pletter",null,null,null,null,null,null,null,null,null,null,null,5,"     Platycheirus immarginatus",null,null,null,null,null,null,null,null,null,null,null,null,null,"podagratus",null,null,null,null,null,3,"Platycheirus podagratus",null,null,null,null,null,null,null,null,null,3,"   Lang Bredfodsflue"]
[null,null,null,null,null,null,null,null,null,null,null,null,6,"Bagkrop med 4 par pletter, 5. leds små",null,null,null,null,null,null,null,null,null,null,null,6,"      Platycheirus occultus  ",null,null,null,null,null,null,null,null,null,null,null,null,null,"scambus",null,null,null,null,null,2,"Platycheirus scambus",null,null,null,null,null,null,null,null,null,2,"Storplettet Bredfodsflue"]
[null,null,null,null,null,null,null,null,null,null,null,null,7,"  Bagkrop med 3 eller 2 pletter",null,null,null,null,null,null,null,null,null,null,null,7,"      Platycheirus perpallidus ",null,null,null,null,null,null,null,null,null,null,null,null,null,"sticticus",null,null,null,null,null,2,"   Platycheirus sticticus",null,null,null,null,null,null,null,null,null,2,"    Lille Bredfodsflue"]
[null,null,null,null,null,null,null,null,null,null,null,null,8,"          Pletter på 3. led",null,null,null,null,null,null,null,null,null,null,null,8,"      Platycheirus podagratus ",null,null,null,null,null,null,null,null,null,null,null,null,null,"peltatus",null,null,null,null,null,2,"Platycheirus peltatus",null,null,null,null,null,null,null,null,null,2,"Stor Bredfodsflue"]
[null,null,null,null,null,null,null,null,null,null,null,null,9,"    Forskinneben tydeligt udvidet",null,null,null,null,null,null,null,null,null,null,null,9,"      Platycheirus scambus",null,null,null,null,null,null,null,null,null,null,null,null,null,"transfugus",null,null,null,null,null,2,"Platycheirus transfugus",null,null,null,null,null,null,null,null,null,2,"Gulplettet Spiralhårsflue"]
[null,null,null,null,null,null,null,null,null,null,null,null,10,"Forskinneben ikke tydeligt udvidet",null,null,null,null,null,null,null,null,null,null,null,10,"      Platycheirus sticticus ",null,null,null,null,null,null,null,null,null,null,null,null,null,"albimanus",null,null,null,null,null,4,"Platycheirus albimanus",null,null,null,null,null,null,null,null,null,4,"   Sortblå Bredfodsflue"]
[null,null,null,null,null,null,null,null,null,null,null,null,11,"      Forfodsled 1 tydeligt udvidet, her kraftigt",null,null,null,null,null,null,null,null,null,null,null,11,"      Platycheirus peltatus ",null,null,null,null,null,null,null,null,null,null,null,null,null,"scutatus",null,null,null,null,null,3,"    Platycheirus scutatus",null,null,null,null,null,null,null,null,null,3,"    Skov-Bredfodsflue"]
[null,null,null,null,null,null,null,null,null,null,null,null,12,"   Forfodsled ikke tydeligt udvidet",null,null,null,null,null,null,null,null,null,null,null,12,"      Platycheirus transfugus ",null,null,null,null,null,null,null,null,null,null,null,null,null,"discimanus",null,null,null,null,null,3,"Platycheirus discimanus",null,null,null,null,null,null,null,null,null,3,"   Skive-Bredfodsflue"]
[null,null,null,null,null,null,null,null,null,null,null,null,13,"                      Baglår gule",null,null,null,null,null,null,null,null,null,null,null,13,"      Platycheirus albimanus",null,null,null,null,null,null,null,null,null,null,null,null,null,"manicatus",null,null,null,null,null,1,"Platycheirus manicatus",null,null,null,null,null,null,null,null,null,1,"    Mat Bredfodsflue"]
[null,null,null,null,null,null,null,null,null,null,null,null,14,"            Baglår med sort ring",null,null,null,null,null,null,null,null,null,null,null,14,"      Platycheirus scutatus complex ",null,null,null,null,null,null,null,null,null,null,null,null,null,"tarsalis",null,null,null,null,null,2,"Platycheirus tarsalis",null,null,null,null,null,null,null,null,null,2,"   Tidlig Bredfodsflue"]
[null,null,null,null,null,null,null,null,null,null,null,null,15,"                      Baglår sorte",null,null,null,null,null,null,null,null,null,null,null,15,"        Platycheirus discimanus ",null,null,null,null,null,null,null,null,null,null,null,null,null,"ambiguus",null,null,null,null,null,2,"  Platycheirus ambiguus",null,null,null,null,null,null,null,null,null,2,"Gråplettet Spiralhårsflue"]
[null,null,null,null,null,null,null,null,null,null,null,null,16,"            Bagskinneben gule",null,null,null,null,null,null,null,null,null,null,null,16,"      Platycheirus manicatus ",null,null,null,null,null,null,null,null,null,null,null,null,null,"granditarsis",null,null,null,null,null,1,"Platycheirus granditarsis",null,null,null,null,null,null,null,null,null,1,"     Rød Ildsvirreflue"]
[null,null,null,null,null,null,null,null,null,null,null,null,17,"       Bagskinneben med sort ring",null,null,null,null,null,null,null,null,null,null,null,17,"        Platycheirus tarsalis ",null,null,null,null,null,null,null,null,null,null,null,null,null,"rosarum",null,null,null,null,null,0,"  Platycheirus rosarum",null,null,null,null,null,null,null,null,null,0,"Toplettet Ildsvirreflue"]
[null,null,null,null,null,null,null,null,null,null,null,null,18,"               Bagskinneben sort",null,null,null,null,null,null,null,null,null,null,null,18,"      Platycheirus ambiguus "]
[null,null,null,null,null,null,null,null,null,null,null,null,19,"            For- og mellemlår gule",null,null,null,null,null,null,null,null,null,null,null,19,"      Platycheirus granditarsis "]
[null,null,null,null,null,null,null,null,null,null,null,null,20,"        For- og mellemlår med sort ring",null,null,null,null,null,null,null,null,null,null,null,20,"      Platycheirus rosarum "]
[null,null,null,null,null,null,null,null,null,null,null,null,21,"            For- og mellemlår sorte"]
[null,null,null,null,null,null,null,null,null,null,null,null,22,"        For- og mellemskinneben gule"]
[null,null,null,null,null,null,null,null,null,null,null,null,23,"For- og mellemskinneben med sort ring"]
[null,null,null,null,null,null,null,null,null,null,null,null,24,"    For- og mellemskinneben sorte"]
[null,null,null,null,null,null,null,null,null,null,null,null,25,"          3. følehornsled helt sort"]
[null,null,null,null,null,null,null,null,null,null,null,null,26,"        3. følehornsled lysere underst",null,null,null,null,null,null,null,null,null,null,null,null,null,null,null,null,null,null,null,null,null,null,null,null,null,null,null,null,null,null,null,null,null,null,null,null,null,null,null,null,null,null,null,null,null,null,null,null,null,null,null,null,null,null,null,null,null,null,null,null,null,null,null,null,null,null,null,null,null,null,null,null,null,{"$f":"$CE$80","v":13},{"$f":"VLOOKUP(CJ105,'Ark3'!C3:D28,2,FALSE)","v":"Ark3!B15"}]
[null,null,null,null,null,null,null,null,null,null,null,null,27,"    3. følehornsled længere end bredt",null,null,null,null,null,null,null,null,null,null,null,null,null,null,null,null,null,null,null,null,null,null,null,null,null,null,null,null,null,null,null,null,null,null,null,null,null,null,null,null,null,null,null,null,null,null,null,null,null,null,null,null,null,null,null,null,null,null,null,null,null,null,null,null,null,null,null,null,null,null,null,null,null,null,null,null,null,{"$f":"$CE$80","v":13},{"$f":"VLOOKUP(CN106,'Ark2'!B1:C26,2,FALSE)","v":"ARK2!A13"},null,{"$f":"$CE$80","v":13},{"$f":"VLOOKUP(CQ106,'Ark2'!F1:G26,2,FALSE)","v":"ARK2!E13"},null,{"$f":"$BY$36","v":15},{"$f":"VLOOKUP(CT106,'Ark2'!J1:K32,2,FALSE)","v":"ARK2!I15"}]
[null,null,null,null,null,null,null,null,null,null,null,null,28," 3. følehornsled ikke  længere end bredt"]
[null,null,null,null,null,null,null,null,null,null,null,null,29,"     Mundkant fremskydende, her kraftigt"]
[null,null,null,null,null,null,null,null,null,null,null,null,30,"   Mundkant lidtt fremskydende, ansigt måske fladt"]
[null,null,null,null,null,null,null,null,null,null,null,null,31,"       Forlår inderst med bøjet langt hvidt hår (th) ",null,null,null,null,null,null,null,null,null,null,null,null,null,null,null,null,null,null,null,null,null,null,null,null,null,null,null,"Lopslag for teksterne bruger CI105 og CJ105 og CK105 sammen med CE80 , der er lig alternativknapperne"]
[null,null,null,null,null,null,null,null,null,null,null,null,32,"       Forlår inderst uden bøjet langt hvidt hår",null,null,null,null,null,null,null,null,null,null,null,null,null,null,null,null,null,null,null,null,null,null,null,null,null,null,null,"Lopslag forbillede1 bruger CM106 og CN106 og CO106 sammen med CE80 , der er lig alternativknapperne"]
[null,null,null,null,null,null,null,null,null,null,null,null,null,null,null,null,null,null,null,null,null,null,null,null,null,null,null,null,null,null,null,null,null,null,null,null,null,null,null,null,null,"Lopslag forbillede2 bruger CP106 og CQ106 og CR106 sammen med CE80 , der er lig alternativknapperne"]
[null,null,null,null,null,null,null,null,null,null,null,null,null,null,null,null,null,null,null,null,null,null,null,null,null,null,null,null,null,null,null,null,null,null,null,null,null,null,null,null,null,"Lopslag for kendetegnbillede bruger CS106 og CT106 og CU106 sammen med BY36 , der kodes af checkboxene"]
[null,null,null,null,null,null,null,null,null,null,null,null,null,null,null,null,null,null,null,null,null,null,null,null,null,null,null,null,null,null,null,null,null,null,null,null,null,null,null,null,null,"flag1 er for 1. billede;flag3 er for 2. billede;flag2 er for teksterne; flag 4 er for detailbillederne"]

{"sheet":"Ark2","index":1,"n_rows":32,"n_cols":12,"rows_kept":32,"cut":false,"hidden":false,"merged":[]}
[null,1,"ARK2!A1","angustatus",null,1,"ARK2!E1",null,1,1,"ARK2!I1","Gule pletter"]
[null,2,"ARK2!A2","clypeatus",null,2,"ARK2!E2",null,2,2,"ARK2!I2","grå pletter"]
[null,3,"ARK2!A3","europaeus",null,3,"ARK2!E3",null,3,3,"ARK2!I3","røde"]
[null,4,"ARK2!A4","fulviventris",null,4,"ARK2!E4",null,4,4,"ARK2!I4","hvide"]
[null,5,"ARK2!A5","immarginatus",null,5,"ARK2!E5",null,5,5,"ARK2!I5","4 pletter st."]
[null,6,"ARK2!A6","occultus",null,6,"ARK2!E6",null,6,6,"ARK2!I6","4 pletter små"]
[null,7,"ARK2!A7","perpallidus",null,7,"ARK2!E7",null,null,7,"ARK2!I7","3  pletter"]
[null,8,"ARK2!A8","podagratus",null,8,"ARK2!E8",null,null,8,"ARK2!I8","1 plet"]
[null,9,"ARK2!A9","scambus",null,9,"ARK2!E9",null,null,9,"ARK2!i9","Forskb. udv."]
[null,10,"ARK2!A10","sticticus",null,10,"ARK2!E10",null,null,10,"ARK2!I10","Ikke udv."]
[null,11,"ARK2!A11","peltatus",null,11,"ARK2!E11",null,null,11,"ARK2!I11","forfodsled udv."]
[null,12,"ARK2!A12","transfugus",null,12,"ARK2!E12",null,null,12,"ARK2!I12","forfodsled ikke"]
[null,13,"ARK2!A13","albimanus",null,13,"ARK2!E13",null,13,13,"ARK2!I13","baglår gule"]
[null,14,"ARK2!A14","scutatus",null,14,"ARK2!E14",null,null,14,"ARK2!I14","med ringe"]
[null,15,"ARK2!A15","discimanus",null,15,"ARK2!E15",null,null,15,"ARK2!I15","baglår sorte"]
[null,16,"ARK2!A16","manicatus",null,16,"ARK2!E16",null,16,16,"ARK2!I16","Bagskb. gule"]
[null,17,"ARK2!A17","tarsalis",null,17,"ARK2!E17",null,null,17,"ARK2!I17","Bagskb. Ringe"]
[null,18,"ARK2!A18","ambiguus",null,18,"ARK2!E18",null,null,18,"ARK2!I18","Bagskb. Sorte"]
[null,19,"ARK2!A19","splendidus",null,19,"ARK2!E19",null,19,19,"ARK2!I19","For/mellemlår gule"]
[null,20,"ARK2!A20","aurolateralis",null,20,"ARK2!E20",null,null,20,"ARK2!I20","med ringe "]
[null,21,"ARK2!A21","granditarsis",null,21,"ARK2!E21",null,21,21,"ARK2!I21","sorte"]
[null,22,"ARK2!A22","rosarum",null,22,"ARK2!E22",null,null,22,"ARK2!I22","For/mel.skb gule"]
[null,23,"ARK2!A23",null,null,23,"ARK2!E23",null,null,23,"ARK2!I23","med ringe"]
[null,24,"ARK2!A24",null,null,24,"ARK2!E24",null,null,24,"ARK2!I24","sorte"]
[null,25,"ARK2!A25",null,null,25,"ARK2!E25",null,25,25,"ARK2!I25","Ant. 3. led sort"]
[null,26,"ARK2!A26",null,null,26,"ARK2!E26",null,26,26,"ARK2!I26","gult"]
[null,null,null,null,null,null,null,null,27,27,"ARK2!I27","Ant.3 langt"]
[null,null,null,null,null,null,null,null,28,28,"ARK2!I28","Ant.l. 3 kort"]
[null,null,null,null,null,null,null,null,null,29,"ARK2!I29","Underans. Fremsk."]
[null,null,null,null,null,null,null,null,null,30,"ARK2!I30","Ansigt fladt"]
[null,null,null,null,null,null,null,null,null,31,"ARK2!I31","Forlår m. hår"]
[null,null,null,null,null,null,null,null,null,32,"ARK2!I32","Forlår uden hår"]

{"sheet":"Ark3","index":2,"n_rows":28,"n_cols":4,"rows_kept":28,"cut":false,"hidden":false,"merged":[]}
[]
[]
[null,null,1,"Ark3!B3"]
[null,null,2,"Ark3!B4"]
[null,null,3,"Ark3!B5"]
[null,null,4,"Ark3!B6"]
[null,null,5,"Ark3!B7"]
[null,null,6,"Ark3!B8"]
[null,null,7,"Ark3!B9"]
[null,null,8,"Ark3!B10"]
[null,null,9,"Ark3!B11"]
[null,null,10,"Ark3!B12"]
[null,null,11,"Ark3!B13"]
[null,null,12,"Ark3!B14"]
[null,null,13,"Ark3!B15"]
["    ",null,14,"Ark3!B16"]
[null,null,15,"Ark3!B17"]
[null,null,16,"Ark3!B18"]
[null,null,17,"Ark3!B19"]
[null,null,18,"Ark3!B20"]
[null,null,19,"Ark3!B21"]
[null,null,20,"Ark3!B22"]
[null,null,21,"Ark3!B23"]
[null,null,22,"Ark3!B24"]
[null,null,23,"Ark3!B25"]
[null,null,24,"Ark3!B26"]
[null,null,25,"Ark3!B27"]
[null,null,26,"Ark3!B28"]

{"sheet":"Ark4","index":3,"n_rows":0,"n_cols":0,"rows_kept":0,"cut":false,"hidden":false,"merged":[]}